bitfinex/quotes_ETHUSD_20250802
["timestamp","ask_amount","ask_price","bid_price","bid_amount"]
[1754162326693,0.001,3400.7,3400.6,1.3602]
[1754162327262,0.001,3400.7,3400.6,1.8179]
[1754162328125,0.001,3400.7,3400.6,0.1472]
[1754162328330,0.001,3400.7,3400.6,1.3602]
[1754162329333,0.001,3400.7,3400.6,4.8179]
[1754162329505,0.001,3400.7,3400.6,9.4999]
[1754162331253,0.001,3400.7,3400.6,12.44055753]
[1754162335568,0.001,3401.1,3400.7,3.0]
[1754162335723,0.001,3401.1,3401.0,3.0]
[1754162335922,0.001,3401.1,3401.0,7.8282]
[1754162336135,0.001,3401.1,3401.0,12.43051167]
[1754162336459,0.001,3401.1,3401.0,26.39274783]
[1754162336622,1.3663,3402.6,3401.7,3.0]
[1754162336955,1.6803,3402.3,3402.1,0.1472]
[1754162337159,0.1472,3403.1,3402.2,4.68]
[1754162337160,0.4612,3402.7,3402.2,4.68]
[1754162337344,1.6803,3402.7,3401.9,3.0]
[1754162337550,1.6803,3402.6,3402.1,3.0]
[1754162337857,1.6803,3403.0,3402.1,3.0]
[1754162338021,1.6803,3403.0,3402.8,0.1472]
[1754162338224,0.15595421,3403.9,3402.8,0.1472]
[1754162338464,0.1472,3403.7,3402.9,4.68]
[1754162338622,0.15595421,3403.9,3403.3,0.1472]
[1754162338826,0.30315421,3403.9,3403.4,3.0]
[1754162339172,1.83625421,3403.9,3403.4,3.0]
[1754162339373,1.83625421,3403.9,3403.8,0.1472]
[1754162339538,0.15595421,3403.9,3403.8,0.1472]
[1754162339857,1.83625421,3403.9,3403.8,0.1472]
[1754162340219,1.82625421,3403.9,3403.4,4.68]
[1754162340534,1.6803,3403.8,3402.1,4.2123]
[1754162340735,2.2303,3403.7,3402.3,3.0]
[1754162341043,1.6803,3403.6,3402.3,3.0]
[1754162341244,0.14595421,3403.9,3402.4,1.662]
[1754162341420,0.14595421,3403.9,3402.6,0.55]
[1754162341625,0.14595421,3403.9,3402.8,3.0]
[1754162341858,0.14595421,3403.9,3402.9,1.662]
[1754162342463,0.14595421,3403.9,3403.1,3.0]
[1754162343828,0.14595421,3403.9,3403.1,0.0594]
[1754162344128,0.14595421,3403.9,3403.2,1.2123]
[1754162344330,0.55,3405.0,3403.2,1.2123]
[1754162344331,0.4612,3404.4,3403.2,5.8913]
[1754162344509,0.4612,3404.4,3403.3,5.1277]
[1754162344709,1.2191,3404.3,3402.9,1.662]
[1754162344884,0.4612,3404.2,3403.0,4.678]
[1754162345090,1.2191,3404.1,3402.9,1.662]
[1754162345289,0.4612,3404.0,3403.0,4.678]
[1754162345522,0.4612,3404.0,3402.9,1.662]
[1754162345731,0.4612,3404.0,3403.1,1.2123]
[1754162346413,0.001,3403.9,3403.2,4.678]
[1754162346652,7.679,3405.6,3403.2,4.678]
[1754162346653,3.25470184,3406.9,3403.2,4.678]
[1754162346805,1.2191,3405.4,3403.3,2.05542648]
[1754162347000,0.03670748,3405.3,3403.4,6.34]
[1754162347227,1.2191,3405.2,3403.4,0.4497]
[1754162347431,0.55,3405.1,3403.6,3.0]
[1754162347601,0.03670101,3405.9,3403.7,1.662]
[1754162347602,1.2191,3405.0,3403.7,1.662]
[1754162347805,1.2191,3405.0,3403.6,3.0]
[1754162348027,1.2191,3405.0,3403.8,1.662]
[1754162348403,0.55,3404.9,3403.9,4.677]
[1754162349005,1.2191,3404.8,3403.9,4.677]
[1754162349200,3.0,3406.6,3403.9,4.677]
[1754162349201,13.96223616,3406.7,3403.9,4.677]
[1754162349422,3.101,3406.9,3403.9,4.677]
[1754162349423,0.55,3405.2,3404.0,4.662]
[1754162349645,0.55,3405.2,3404.1,1.662]
[1754162349846,3.0,3406.2,3404.2,1.662]
[1754162349847,1.2191,3405.5,3404.2,1.662]
[1754162350143,3.0,3406.2,3404.3,1.662]
[1754162350144,1.2191,3405.8,3404.3,1.662]
[1754162350344,0.1472,3405.2,3404.8,0.1472]
[1754162350543,0.1472,3405.2,3404.9,1.2123]
[1754162350749,0.1472,3405.2,3404.8,0.1472]
[1754162351644,0.1472,3405.2,3404.8,0.81936454]
[1754162351820,0.1472,3405.4,3404.9,1.662]
[1754162352015,1.2191,3406.0,3405.0,1.662]
[1754162352241,0.1472,3405.5,3405.0,1.8092]
[1754162352448,0.1472,3405.5,3405.1,1.662]
[1754162352609,0.1472,3405.9,3405.4,0.1472]
[1754162353021,0.1472,3405.9,3405.5,1.662]
[1754162353277,1.2191,3406.5,3405.1,3.0]
[1754162353544,1.2191,3406.5,3405.8,0.1472]
[1754162353545,1.3655,3406.5,3405.8,0.1472]
[1754162353754,0.1464,3406.5,3405.6,1.662]
[1754162353957,7.065,3407.1,3405.8,0.22327549]
[1754162353958,1.2191,3406.9,3405.8,0.22327549]
[1754162354162,1.2191,3406.9,3406.2,0.1464]
[1754162354727,1.2191,3406.9,3406.0,0.27172644]
[1754162354934,1.3655,3406.9,3406.4,0.1464]
[1754162355462,0.1464,3406.9,3406.4,0.1464]
[1754162355627,0.1464,3406.9,3406.0,0.27172644]
[1754162355628,0.1464,3406.5,3406.0,0.27172644]
[1754162355838,0.1464,3406.3,3405.8,0.37085067]
[1754162356016,0.1464,3406.3,3405.8,0.64257711]
[1754162356358,1.2191,3406.2,3405.8,0.1472]
[1754162356521,1.2191,3406.2,3405.7,0.27172644]
[1754162356522,1.5196,3406.1,3405.7,0.224758]
[1754162356722,3.0,3407.0,3405.4,0.1472]
[1754162356723,1.3655,3406.0,3405.4,0.1472]
[1754162356965,1.3655,3406.0,3405.3,0.27172644]
[1754162356966,0.55,3405.8,3405.2,0.27172644]
[1754162357146,4.674,3406.6,3404.0,0.27172644]
[1754162357147,0.55,3405.6,3404.0,0.27172644]
[1754162357320,0.55,3405.4,3404.7,0.21831681]
[1754162357626,4.674,3406.7,3404.7,1.87890504]
[1754162357830,1.2191,3406.1,3404.9,3.0]
[1754162358028,1.2191,3406.6,3405.0,1.93372644]
[1754162358229,4.674,3406.7,3404.9,3.0]
[1754162358230,4.674,3406.7,3405.1,1.93372644]
[1754162358418,4.674,3406.7,3405.2,1.93372644]
[1754162358620,1.2191,3407.6,3405.2,1.99512644]
[1754162358853,0.4612,3407.5,3405.3,4.674]
[1754162359059,1.2191,3407.4,3405.2,1.99512644]
[1754162359263,1.2191,3407.4,3405.0,7.061]
[1754162359264,0.4612,3407.3,3405.0,7.061]
[1754162359430,3.55,3407.1,3405.0,7.061]
[1754162359630,3.55,3407.1,3404.7,0.21964034]
[1754162359631,0.55,3406.9,3404.8,4.674]
[1754162359849,13.90073293,3407.9,3403.8,7.061]
[1754162359850,1.71699132,3406.8,3403.8,7.061]
[1754162360058,1.2191,3406.7,3404.5,0.55]
[1754162360368,0.55,3406.5,3404.0,0.55]
[1754162360539,0.4612,3406.8,3404.7,0.55]
[1754162360861,1.2191,3406.8,3404.9,3.0]
[1754162361032,1.2191,3406.8,3405.0,1.662]
[1754162361427,1.2191,3406.8,3405.1,1.662]
[1754162361697,1.25579132,3406.8,3405.2,1.662]
[1754162361988,0.4703,3406.7,3405.3,1.0976]
[1754162362356,0.55,3406.5,3404.8,1.5395]
[1754162362554,1.6152,3406.4,3404.8,0.4419]
[1754162362797,1.1449,3406.3,3404.9,1.0976]
[1754162363156,1.1449,3406.3,3405.0,0.4419]
[1754162363859,0.50699778,3406.2,3404.7,3.0]
[1754162364052,1.1449,3406.1,3404.7,3.0]
[1754162364246,1.1449,3406.1,3404.8,1.5395]
[1754162364497,0.50699994,3406.0,3404.8,1.5395]
[1754162364651,1.1449,3405.9,3404.8,1.5395]
[1754162364853,0.4703,3405.8,3404.5,0.22466911]
[1754162365053,0.4703,3405.8,3404.4,1.5395]
[1754162365054,0.03670317,3405.7,3404.4,1.5395]
[1754162365303,0.4703,3405.6,3404.4,1.5395]
[1754162365452,1.18160532,3405.5,3404.1,5.7696]
[1754162365649,0.4703,3405.4,3404.1,1.31931322]
[1754162365952,1.1449,3405.3,3404.1,1.31931322]
[1754162366263,0.4703,3405.2,3404.1,0.22171322]
[1754162366463,0.4703,3405.2,3404.2,1.5395]
[1754162366983,0.1472,3405.1,3404.6,0.1472]
[1754162367385,0.1472,3405.4,3404.7,1.5395]
[1754162367696,0.1472,3404.7,3404.3,0.1472]
[1754162367902,1.18161503,3404.6,3404.2,0.1472]
[1754162368197,0.1472,3404.8,3404.2,0.1472]
[1754162368402,0.1472,3404.5,3404.1,0.21952317]
[1754162368554,1.1449,3405.4,3404.2,1.5395]
[1754162368759,0.4703,3405.3,3403.7,1.5395]
[1754162368974,1.6949,3405.2,3403.7,1.5395]
[1754162369306,0.55,3405.0,3403.4,1.5395]
[1754162369503,1.6152,3404.9,3403.4,1.5395]
[1754162369659,0.55,3404.8,3403.4,1.5395]
[1754162369979,0.55,3404.6,3403.4,1.5395]
[1754162370296,1.1449,3404.7,3403.5,1.5395]
[1754162370663,0.03671503,3404.6,3403.5,1.5395]
[1754162370869,1.6152,3404.7,3403.5,1.5395]
[1754162370870,0.4703,3404.7,3403.5,1.5395]
[1754162371071,1.1449,3404.5,3403.5,1.5395]
[1754162371266,1.05701718,3404.4,3403.3,0.2194349]
[1754162371466,1.0203,3404.4,3403.1,0.002]
[1754162371781,0.55,3404.2,3403.1,0.2231782]
[1754162371956,0.55,3404.0,3403.1,0.2231782]
[1754162372156,0.55,3404.0,3403.3,0.002]
[1754162372797,4.69,3404.6,3403.3,0.002]
[1754162372798,0.55,3403.8,3403.3,0.002]
[1754162373100,0.55,3404.1,3403.3,0.002]
[1754162373300,1.6152,3403.7,3403.3,0.002]
[1754162373799,0.58672581,3403.6,3403.3,0.002]
[1754162373999,2.1652,3403.6,3403.3,0.002]
[1754162374154,1.0203,3403.6,3403.3,0.002]
[1754162374356,1.1449,3403.5,3403.3,0.002]
[1754162374556,0.03672797,3403.4,3403.3,0.002]
[1754162374756,1.18162797,3403.4,3403.3,0.002]
[1754162374956,2.20192797,3403.4,3403.3,0.002]
[1754162375178,2.1652,3403.4,3403.3,0.002]
[1754162375603,1.1449,3403.8,3403.3,0.002]
[1754162375971,1.1449,3404.1,3403.3,0.002]
[1754162376307,4.687,3404.4,3403.4,1.5395]
[1754162376468,4.687,3404.4,3403.3,0.002]
[1754162376469,1.1449,3404.1,3403.3,0.002]
[1754162376870,0.55,3404.0,3403.3,0.002]
[1754162377073,4.694,3404.5,3403.3,1.0996]
[1754162377408,0.55,3404.3,3403.3,1.0996]
[1754162377905,1.1449,3404.5,3403.4,0.4419]
[1754162378262,1.1449,3404.8,3403.5,1.0976]
[1754162378459,0.55,3404.7,3403.5,1.0976]
[1754162378659,7.062,3405.5,3403.5,1.0976]
[1754162378660,0.1472,3404.2,3403.7,0.1472]
[1754162378960,0.1472,3404.2,3403.3,0.002]
[1754162378961,0.1472,3404.7,3404.2,0.1472]
[1754162379223,0.1472,3404.7,3404.3,1.5395]
[1754162379716,0.1472,3404.7,3404.1,0.1472]
[1754162380005,0.1472,3404.7,3403.3,0.002]
[1754162380006,0.1472,3404.4,3403.9,0.1472]
[1754162380241,0.1472,3404.4,3403.4,1.0976]
[1754162380242,1.18161826,3404.3,3403.4,1.0976]
[1754162380564,0.1472,3404.4,3403.5,1.5395]
[1754162380848,0.1472,3404.6,3404.1,0.1472]
[1754162381016,0.1472,3404.6,3404.2,1.5395]
[1754162381224,0.1472,3404.7,3404.2,1.5395]
[1754162381605,0.1472,3404.7,3404.1,0.1472]
[1754162382207,0.1472,3404.8,3403.9,1.5395]
[1754162382414,1.18161395,3404.7,3403.5,1.5395]
[1754162382609,0.1472,3404.5,3403.5,1.5395]
[1754162382804,0.03671718,3404.4,3403.9,0.1472]
[1754162383051,1.1449,3404.3,3403.9,0.1472]
[1754162383618,0.1472,3404.5,3402.7,7.689]
[1754162383926,0.1472,3404.5,3403.9,0.1472]
[1754162384159,1.1449,3404.4,3403.9,0.1472]
[1754162384317,0.4703,3404.3,3403.9,0.1472]
[1754162384517,1.6152,3404.2,3403.9,0.1472]
[1754162384757,1.6152,3404.2,3402.6,3.0]
[1754162384948,0.1472,3404.0,3403.6,0.1472]
[1754162385560,0.4703,3404.7,3403.9,0.1472]
[1754162385850,0.1472,3404.5,3403.9,0.1472]
[1754162386359,1.2921,3404.5,3403.9,0.1472]
[1754162386520,0.1472,3404.5,3403.9,0.1472]
[1754162387815,0.1472,3404.5,3404.0,0.16384545]
[1754162388045,0.1472,3404.5,3403.9,0.36905352]
[1754162388046,0.1472,3404.5,3404.1,0.16384545]
[1754162388252,0.1472,3404.5,3404.2,0.16384545]
[1754162388435,0.1472,3404.5,3404.3,0.16384545]
[1754162388757,0.1472,3404.5,3404.4,0.16384545]
[1754162389113,1.2921,3404.5,3404.4,0.16384545]
[1754162390077,1.7624,3404.5,3404.4,0.16384545]
[1754162390347,2.3124,3404.5,3404.4,0.16384545]
[1754162390751,0.55,3404.4,3402.4,1.5395]
[1754162390912,0.1472,3403.5,3403.0,0.1472]
[1754162391109,1.2921,3403.5,3403.0,0.1472]
[1754162391309,0.1472,3403.5,3403.0,0.1472]
[1754162391616,1.1449,3403.4,3403.0,0.1472]
[1754162391818,1.1449,3403.4,3402.6,0.4419]
[1754162391819,1.1449,3403.3,3402.6,0.4419]
[1754162392014,1.1449,3403.3,3402.9,0.1472]
[1754162392255,1.1269,3403.2,3402.9,0.1472]
[1754162392758,0.1472,3403.5,3403.3,0.002]
[1754162393269,1.1269,3404.1,3403.3,0.002]
[1754162393420,0.1472,3403.8,3403.4,0.1472]
[1754162393822,1.5644,3403.7,3403.4,0.1472]
[1754162394018,1.5644,3403.7,3403.3,0.002]
[1754162394019,0.55,3403.4,3403.3,0.002]
[1754162394468,2.1144,3403.4,3403.3,0.002]
[1754162394816,2.15112797,3403.4,3403.3,0.002]
[1754162397342,6.7934,3403.4,3403.3,0.002]
[1754162397551,2.1144,3403.4,3403.3,0.002]
[1754162397746,6.7904,3403.4,3403.3,0.002]
[1754162397940,6.3876,3403.4,3403.3,0.002]
[1754162398142,4.8232,3403.4,3403.3,0.002]
[1754162398470,4.8232,3403.4,3402.6,0.3497]
[1754162398471,5.8029,3403.4,3402.6,0.3497]
[1754162398842,1.16362905,3403.3,3402.5,0.21841572]
[1754162399060,0.55,3403.2,3401.9,1.1964]
[1754162399232,0.03673121,3403.1,3401.9,1.1964]
[1754162399437,0.55,3403.2,3401.9,1.1964]
[1754162400187,0.55,3403.2,3401.9,1.0964]
[1754162400535,4.676,3403.3,3402.0,0.436]
[1754162400790,1.1269,3403.6,3402.0,0.436]
[1754162400965,1.1269,3403.6,3402.0,3.436]
[1754162400966,4.676,3403.3,3402.0,3.436]
[1754162401137,4.676,3403.3,3402.0,3.0]
[1754162401336,4.676,3403.3,3402.1,0.436]
[1754162401736,0.55,3403.9,3402.1,0.436]
[1754162401737,1.1269,3403.9,3402.1,0.436]
[1754162401947,0.03672366,3403.8,3402.2,1.7023]
[1754162402154,0.4375,3404.5,3402.2,1.0964]
[1754162402382,1.1269,3404.3,3402.3,3.31170787]
[1754162402535,1.1269,3404.3,3402.6,3.0]
[1754162402735,1.1269,3404.3,3402.7,1.5324]
[1754162402975,0.47421934,3404.2,3402.7,1.5324]
[1754162403179,1.1269,3404.1,3402.0,0.21559299]
[1754162403341,0.55,3403.9,3402.0,0.21559299]
[1754162403537,0.55,3403.7,3401.4,0.436]
[1754162403737,0.55,3403.5,3401.4,0.436]
[1754162403972,0.55,3403.3,3401.2,0.436]
[1754162404137,1.5644,3403.2,3401.2,0.436]
[1754162404333,0.55,3403.0,3401.3,1.0964]
[1754162404535,0.55,3402.8,3401.4,0.436]
[1754162404764,0.55,3402.6,3401.4,0.436]
[1754162404977,1.1269,3402.5,3401.4,0.436]
[1754162405382,1.1269,3402.8,3401.5,1.0964]
[1754162405577,1.1269,3402.8,3401.6,0.436]
[1754162406078,1.1269,3402.8,3401.7,1.0964]
[1754162406645,0.55,3402.6,3401.2,1.74811963]
[1754162406981,1.5644,3402.5,3401.2,1.5324]
[1754162407483,1.1269,3402.5,3401.3,1.5324]
[1754162408338,0.1472,3402.3,3401.8,0.1472]
[1754162408883,1.2741,3402.3,3401.8,0.1472]
[1754162409755,0.1472,3402.3,3401.8,0.1472]
[1754162411180,1.2741,3402.3,3401.8,0.1472]
[1754162412086,0.1472,3402.3,3401.8,0.1472]
[1754162412383,1.1269,3402.2,3401.8,0.1472]
[1754162412793,0.5847,3402.3,3401.8,0.1472]
[1754162412948,0.55,3402.6,3401.2,0.659293]
[1754162412949,1.1269,3402.1,3401.2,0.659293]
[1754162413150,0.1472,3402.0,3401.5,0.1472]
[1754162414401,0.1472,3402.3,3401.8,0.1492]
[1754162415696,0.1472,3402.5,3402.0,0.1472]
[1754162415895,1.2741,3402.5,3402.0,0.1472]
[1754162416298,0.1472,3402.5,3402.0,0.1472]
[1754162416498,1.60113877,3402.4,3401.8,0.002]
[1754162416702,0.55,3402.3,3401.8,0.002]
[1754162416877,0.1472,3401.9,3401.8,0.002]
[1754162417405,1.7116,3401.9,3401.8,0.002]
[1754162418960,0.001,3405.6,3401.8,0.002]
[1754162418961,1.1269,3402.2,3401.8,0.002]
[1754162419162,1.2741,3402.2,3401.8,0.002]
[1754162419889,0.1472,3402.2,3401.8,0.002]
[1754162420412,1.1269,3402.5,3401.8,0.002]
[1754162421059,1.2741,3402.5,3402.0,0.1472]
[1754162422306,1.0883,3403.0,3402.1,0.4744]
[1754162422608,1.0883,3403.0,3402.7,0.1472]
[1754162422906,1.0883,3402.9,3402.7,0.1472]
[1754162424581,0.1472,3403.2,3402.7,0.1472]
[1754162424810,1.0883,3403.5,3402.0,4.33448537]
[1754162425120,4.678,3403.9,3402.8,0.4744]
[1754162425121,5.7663,3403.9,3402.8,0.4744]
[1754162425408,5.9135,3403.9,3403.4,0.1472]
[1754162425715,1.0883,3403.8,3403.4,0.1472]
[1754162425867,0.1472,3403.9,3403.4,0.1472]
[1754162426076,1.0883,3403.8,3403.4,0.1472]
[1754162426409,1.0883,3403.7,3403.4,0.1472]
[1754162427070,1.0883,3403.6,3403.4,0.1472]
[1754162427269,1.0883,3403.5,3403.4,0.1472]
[1754162427689,0.5792,3403.9,3403.4,0.1472]
[1754162427910,1.0883,3403.8,3403.4,0.1472]
[1754162428104,0.46872474,3403.7,3402.1,0.31170787]
[1754162428318,6.3153,3403.6,3401.8,0.002]
[1754162428616,0.1472,3402.9,3402.4,0.1472]
[1754162428821,0.001,3404.3,3402.5,0.4744]
[1754162428985,1.0883,3403.6,3403.3,0.1472]
[1754162429166,0.1472,3403.9,3403.3,0.1472]
[1754162429372,1.5203,3403.8,3403.3,0.1472]
[1754162429670,1.5203,3403.7,3403.3,0.1472]
[1754162429871,1.0883,3403.6,3403.3,0.1331]
[1754162430319,0.432,3403.7,3403.3,0.35328562]
[1754162430619,1.0883,3403.5,3403.3,0.1331]
[1754162430918,0.432,3403.4,3403.0,0.1472]
[1754162431425,1.5203,3403.3,3403.0,0.21753624]
[1754162431717,0.1472,3403.2,3403.0,0.21753624]
[1754162432024,1.0883,3403.1,3402.8,0.1472]
[1754162432674,0.1472,3403.2,3402.8,0.1472]
[1754162433067,0.1472,3403.2,3402.8,0.6216]
[1754162433270,1.0883,3403.4,3403.1,0.1472]
[1754162433715,0.1472,3403.5,3403.1,0.1472]
[1754162433911,1.0883,3403.4,3403.1,0.1472]
[1754162434273,0.1472,3403.8,3403.3,0.1472]
[1754162434470,1.0883,3403.7,3403.3,0.1472]
[1754162435691,0.1472,3403.9,3403.3,0.1472]
[1754162435890,0.1472,3403.9,3403.0,0.4744]
[1754162435891,1.0883,3404.0,3402.8,17.53850837]
[1754162436071,1.0893,3404.3,3403.8,0.1472]
[1754162436278,0.001,3404.3,3403.8,0.6216]
[1754162436623,0.001,3404.3,3404.1,0.1472]
[1754162437328,0.001,3404.3,3404.1,0.83758897]
[1754162437511,0.001,3404.3,3404.1,0.36318897]
[1754162437717,0.001,3404.3,3404.2,0.4744]
[1754162438120,0.001,3404.3,3404.2,0.81922532]
[1754162438300,0.001,3404.3,3404.2,0.96642532]
[1754162438844,0.001,3404.3,3404.2,0.6216]
[1754162440627,0.001,3404.3,3404.2,0.95932148]
[1754162441414,0.001,3404.3,3404.2,0.48492148]
[1754162441614,0.001,3404.3,3404.2,0.95932148]
[1754162442112,0.001,3404.3,3404.2,3.89686921]
[1754162442534,0.001,3404.7,3404.2,0.95932148]
[1754162442851,0.001,3404.7,3404.6,6.0844026]
[1754162443039,0.001,3404.7,3404.6,7.8222]
[1754162443215,0.001,3404.7,3404.6,10.7594026]
[1754162443541,0.001,3405.2,3404.6,10.7594026]
[1754162443542,0.001,3405.2,3404.9,3.0]
[1754162443743,0.001,3405.2,3404.6,11.2338026]
[1754162443744,0.001,3405.2,3404.7,6.41150057]
[1754162443915,0.001,3405.2,3405.1,0.1472]
[1754162444448,0.001,3405.2,3405.1,0.4744]
[1754162444617,0.001,3405.2,3405.1,0.6216]
[1754162444819,0.001,3405.2,3405.1,3.55837131]
[1754162445033,0.001,3405.2,3405.1,0.6216]
[1754162445232,0.001,3405.2,3405.1,11.23237131]
[1754162445418,0.001,3405.2,3405.1,25.77087968]
[1754162445951,0.001,3405.2,3405.1,26.37677968]
[1754162446324,0.001,3405.2,3405.1,26.49444268]
[1754162446634,0.001,3405.2,3405.1,9.019163]
[1754162446948,0.001,3405.2,3405.1,4.345163]
[1754162447111,0.001,3406.3,3405.2,3.0]
[1754162447311,0.001,3406.3,3405.3,0.6059]
[1754162447532,0.001,3406.3,3405.2,3.4744]
[1754162447533,0.001,3406.3,3406.2,0.1464]
[1754162447929,0.433,3406.3,3406.2,0.1464]
[1754162448138,0.433,3406.3,3405.3,0.6059]
[1754162448139,0.55,3406.2,3403.9,0.4744]
[1754162448339,0.5794,3406.3,3405.3,0.37196786]
[1754162448340,0.1472,3405.7,3405.3,0.37196786]
[1754162448649,0.001,3406.3,3405.3,0.1472]
[1754162448650,0.432,3405.6,3405.3,0.1472]
[1754162448809,0.432,3405.6,3404.6,4.673]
[1754162449009,0.1472,3405.4,3404.9,0.1472]
[1754162449248,1.5203,3405.3,3404.9,0.36549621]
[1754162449461,0.1472,3405.4,3404.9,0.36549621]
[1754162449657,1.0883,3405.7,3405.3,0.1472]
[1754162449950,1.0883,3405.6,3405.3,0.1472]
[1754162450109,0.432,3405.7,3405.3,0.1472]
[1754162450455,1.0883,3405.5,3405.3,0.1472]
[1754162450658,1.5203,3405.4,3405.3,0.1472]
[1754162451156,1.5203,3405.4,3404.7,3.0]
[1754162451157,1.5203,3405.4,3404.7,2.40806336]
[1754162451322,1.0883,3405.3,3404.6,4.673]
[1754162451507,1.5203,3405.3,3404.9,0.1472]
[1754162451713,0.432,3405.2,3404.9,0.1472]
[1754162452052,1.5211,3405.1,3404.9,0.1472]
[1754162452256,1.0869,3405.0,3404.9,0.1472]
[1754162452555,1.0869,3405.3,3404.9,0.1472]
[1754162452711,0.1472,3405.4,3404.9,0.1472]
[1754162452712,0.1472,3405.4,3404.9,0.36317955]
[1754162453057,1.0869,3405.2,3404.9,0.1472]
[1754162453205,1.0869,3405.2,3404.6,3.0]
[1754162453407,0.4342,3405.4,3405.1,0.1472]
[1754162453408,1.0869,3405.4,3405.1,0.1472]
[1754162453633,1.5211,3405.3,3405.1,0.1472]
[1754162453835,1.5211,3405.2,3405.1,0.1472]
[1754162454058,1.5211,3405.2,3404.2,0.432]
[1754162454353,1.0869,3405.2,3405.1,0.1472]
[1754162455021,1.5211,3405.2,3403.6,7.062]
[1754162455225,1.5211,3405.1,3403.7,4.672]
[1754162455441,1.0869,3405.0,3403.8,3.0]
[1754162455814,1.0869,3405.0,3403.7,7.97572982]
[1754162456020,0.4342,3404.9,3403.8,4.672]
[1754162456533,1.0869,3404.8,3403.8,4.672]
[1754162456719,1.0869,3404.8,3403.7,0.51977835]
[1754162456921,1.0869,3404.8,3403.8,8.1324]
[1754162457236,1.0869,3404.8,3403.9,3.0]
[1754162459016,1.0869,3404.8,3404.0,0.4604]
[1754162459226,1.0869,3404.8,3403.9,3.0]
[1754162459428,1.0869,3404.8,3403.7,0.99117411]
[1754162459730,1.0869,3404.8,3403.8,4.672]
[1754162459946,1.0869,3404.8,3403.9,4.672]
[1754162460172,0.4342,3404.7,3403.9,4.672]
[1754162460471,0.03671503,3404.6,3403.7,0.22309818]
[1754162460626,1.5211,3404.5,3403.8,4.672]
[1754162460826,1.5211,3404.4,3403.6,0.002]
[1754162461031,1.5211,3404.4,3403.6,4.674]
[1754162461278,1.55781826,3404.3,3403.6,0.22141371]
[1754162461480,2.0711,3404.2,3401.7,14.53850837]
[1754162461774,2.0711,3404.2,3402.1,0.883144]
[1754162461775,0.55,3404.0,3402.1,0.883144]
[1754162461939,6.101,3404.8,3401.9,4.672]
[1754162461940,0.55,3403.8,3401.9,4.672]
[1754162462140,0.55,3403.6,3402.0,14.99890837]
[1754162462354,1.5211,3403.5,3402.0,14.99890837]
[1754162462556,1.0869,3403.4,3402.1,6.87350643]
[1754162462757,1.0869,3403.4,3402.1,3.0]
[1754162462928,1.0869,3403.4,3402.2,0.9342]
[1754162463130,0.03671179,3404.9,3402.3,0.4604]
[1754162463380,1.0869,3404.1,3402.4,5.1324]
[1754162463529,1.0869,3404.1,3402.6,3.0]
[1754162463530,1.0209215,3404.0,3402.6,3.0]
[1754162463730,0.55,3403.8,3402.2,3.0]
[1754162463972,0.55,3403.6,3402.1,0.2157002]
[1754162464140,1.12362689,3403.5,3402.1,0.2157002]
[1754162464329,0.55,3403.3,3401.8,3.0]
[1754162464532,0.55,3403.1,3401.8,3.0]
[1754162464754,1.55783229,3403.0,3401.7,3.0443]
[1754162464956,1.0869,3402.9,3401.8,3.0]
[1754162465158,0.1472,3402.6,3402.1,0.1472]
[1754162465584,1.0869,3403.0,3402.1,0.1472]
[1754162465742,1.0869,3403.2,3402.6,0.1472]
[1754162465942,1.2341,3403.2,3402.6,0.1472]
[1754162466344,1.27083013,3403.2,3402.6,0.1472]
[1754162466758,1.2341,3403.2,3402.6,0.1472]
[1754162467169,1.0869,3403.6,3402.7,0.4604]
[1754162467370,1.0869,3403.6,3403.1,0.1472]
[1754162467692,0.1472,3403.9,3403.5,0.1472]
[1754162467979,1.0869,3403.8,3403.5,0.1472]
[1754162468182,1.0869,3403.7,3403.5,0.1472]
[1754162468348,1.0869,3403.6,3403.5,0.1472]
[1754162468766,1.0869,3403.6,3403.2,3.0]
[1754162468968,0.4342,3403.8,3403.2,3.0]
[1754162469257,1.0869,3403.7,3403.2,3.0]
[1754162469458,1.0869,3403.7,3403.2,3.1472]
[1754162469459,1.0869,3403.6,3403.2,3.1472]
[1754162470194,0.1472,3403.7,3403.2,3.1472]
[1754162470346,1.0869,3403.5,3403.2,3.1472]
[1754162471180,0.1472,3403.7,3403.2,3.1472]
[1754162471685,0.1472,3403.7,3403.2,0.1472]
[1754162471893,1.55782581,3403.6,3402.8,4.674]
[1754162472045,0.1472,3403.3,3402.9,3.0]
[1754162472482,1.0869,3403.2,3402.9,3.0]
[1754162472686,1.0869,3403.1,3402.9,3.0]
[1754162473288,0.1472,3403.3,3402.9,3.0]
[1754162473464,1.0869,3403.1,3402.9,3.0]
[1754162473793,0.1472,3403.3,3402.9,3.0]
[1754162473948,1.0869,3403.1,3402.9,3.0]
[1754162474149,1.0869,3403.5,3402.9,3.4604]
[1754162474354,0.1472,3403.7,3403.0,0.1472]
[1754162474554,1.2341,3403.7,3403.2,0.1472]
[1754162474785,0.43128437,3403.6,3403.2,0.1472]